bitfinex/quotes_BTCUSD_20240927
["timestamp","ask_amount","ask_price","bid_price","bid_amount"]
[1727451149359,0.33181094,66435.0,66434.0,0.101429]
[1727451149875,0.003,66435.0,66434.0,0.101429]
[1727451150110,0.153523,66435.0,66434.0,0.101429]
[1727451150807,0.152523,66435.0,66434.0,0.101429]
[1727451151540,0.15052,66437.0,66434.0,0.101429]
[1727451151781,0.30580894,66436.0,66434.0,0.101429]
[1727451152026,0.150514,66439.0,66435.0,0.150522]
[1727451152281,0.150514,66439.0,66434.0,0.101429]
[1727451152282,0.150523,66435.0,66434.0,0.101429]
[1727451153287,0.32881094,66435.0,66434.0,0.000829]
[1727451165901,0.602066,66438.0,66436.0,0.0785]
[1727451165902,0.023,66438.0,66436.0,0.0785]
[1727451166130,0.301032,66439.0,66436.0,0.0785]
[1727451166131,0.32880694,66437.0,66436.0,0.0785]
[1727451166370,0.023,66437.0,66436.0,0.0785]
[1727451166602,0.150517,66438.0,66436.0,0.0785]
[1727451167310,0.002,66437.0,66436.0,0.0785]
[1727451167543,0.002,66437.0,66436.0,0.22902]
[1727451168038,0.002,66437.0,66436.0,0.0785]
[1727451168501,0.003,66437.0,66436.0,0.0785]
[1727451168741,0.001,66437.0,66436.0,0.0785]
[1727451168986,0.001,66437.0,66436.0,0.22902]
[1727451169707,0.023,66440.0,66436.0,0.22902]
[1727451169708,0.023,66440.0,66437.0,0.150517]
[1727451170174,0.150512,66440.0,66437.0,0.150517]
[1727451170401,0.023,66442.0,66437.0,0.150517]
[1727451170625,0.023,66440.0,66437.0,0.150516]
[1727451171791,0.301027,66440.0,66436.0,0.0785]
[1727451172024,0.150518,66437.0,66436.0,0.0785]
[1727451172259,0.17352,66436.0,66435.0,0.1025]
[1727451172480,0.32880794,66436.0,66435.0,0.1025]
[1727451173866,0.32980794,66436.0,66435.0,0.1025]
[1727451174107,0.33080794,66436.0,66435.0,0.1025]
[1727451177991,0.3756407,66436.0,66435.0,0.1025]
[1727451178217,0.3674407,66436.0,66435.0,0.1025]
[1727451178447,0.32260794,66436.0,66435.0,0.1025]
[1727451178698,0.38985709,66436.0,66435.0,0.1025]
[1727451178915,0.36755885,66436.0,66435.0,0.1025]
[1727451179181,0.32260794,66436.0,66435.0,0.1025]
[1727451179404,0.36755885,66436.0,66435.0,0.1025]
[1727451179628,0.38985709,66436.0,66435.0,0.1025]
[1727451180076,0.32260794,66436.0,66435.0,0.1025]
[1727451180827,0.53507055,66436.0,66435.0,0.1025]
[1727451181086,0.173523,66435.0,66434.0,0.000829]
[1727451181314,0.173523,66435.0,66421.0,0.099229]
[1727451181315,0.150552,66422.0,66421.0,0.099229]
[1727451181560,0.33047827,66422.0,66421.0,0.099229]
[1727451181793,0.53966277,66422.0,66421.0,0.000829]
[1727451182267,0.06794917,66422.0,66421.0,0.099229]
[1727451182514,0.023,66422.0,66421.0,0.099229]
[1727451182730,0.173552,66422.0,66421.0,0.099229]
[1727451182961,0.023,66422.0,66421.0,0.099229]
[1727451183190,0.06795569,66422.0,66421.0,0.249783]
[1727451183429,0.023,66422.0,66421.0,0.099229]
[1727451183679,0.06795569,66422.0,66421.0,0.099229]
[1727451183914,0.06795845,66422.0,66421.0,0.249783]
[1727451184172,0.04495845,66422.0,66421.0,0.249783]
[1727451184408,0.04595845,66422.0,66421.0,0.249783]
[1727451184646,0.001,66422.0,66421.0,0.249783]
[1727451185321,0.24198968,66422.0,66421.0,0.099229]
[1727451185587,0.41975685,66422.0,66421.0,0.099229]
[1727451185798,0.54083885,66422.0,66421.0,0.099229]
[1727451186073,0.54083885,66422.0,66421.0,0.000829]
[1727451186286,0.54183885,66422.0,66421.0,0.000829]
[1727451186500,0.53983885,66422.0,66421.0,0.000829]
[1727451188647,0.53909434,66422.0,66421.0,0.000829]
[1727451189140,0.3838064,66422.0,66421.0,0.000829]
[1727451189371,0.21099108,66422.0,66421.0,0.628691]
[1727451189605,0.30120693,66422.0,66421.0,0.628691]
[1727451189833,0.08998272,66422.0,66421.0,0.628691]
[1727451190067,0.08998272,66423.0,66422.0,0.150552]
[1727451190570,0.08998272,66423.0,66421.0,0.478137]
[1727451190571,0.06755167,66423.0,66421.0,0.478137]
[1727451190806,0.04503466,66422.0,66421.0,0.628691]
[1727451191503,0.04503466,66423.0,66421.0,0.478137]
[1727451191753,0.06755167,66424.0,66421.0,0.177029]
[1727451191754,0.0675437,66422.0,66421.0,0.177029]
[1727451191982,0.0675437,66422.0,66421.0,0.327583]
[1727451192214,0.001,66423.0,66422.0,0.150552]
[1727451192215,0.06753741,66423.0,66422.0,0.150552]
[1727451192445,0.11256235,66426.0,66421.0,0.478137]
[1727451192446,0.06753741,66425.0,66421.0,0.478137]
[1727451192694,0.04502343,66423.0,66422.0,0.150552]
[1727451192916,0.3686331,66423.0,66421.0,0.177029]
[1727451193398,0.0675351,66422.0,66421.0,0.177029]
[1727451193401,0.47509415,66422.0,66421.0,0.095929]
[1727451193636,0.38504427,66422.0,66421.0,0.095929]
[1727451194164,0.38504427,66422.0,66421.0,0.000829]
[1727451194165,0.54033221,66422.0,66421.0,0.000829]
[1727451194690,0.54033221,66422.0,66420.0,0.00060967]
[1727451194691,0.173554,66421.0,66420.0,0.00060967]
[1727451194930,0.586984,66421.0,66420.0,0.00060967]
[1727451195169,0.73719205,66421.0,66420.0,0.00060967]
[1727451195884,0.60217629,66421.0,66420.0,0.00060967]
[1727451196350,0.60212344,66421.0,66420.0,0.00060967]
[1727451196580,0.55716483,66421.0,66420.0,0.00060967]
[1727451196816,0.56716483,66421.0,66420.0,0.00060967]
[1727451197328,0.32340627,66421.0,66420.0,0.08220967]
[1727451197565,0.06695996,66421.0,66420.0,0.23276667]
[1727451197803,0.012,66421.0,66420.0,0.23276667]
[1727451198288,0.06743993,66424.0,66421.0,0.301109]
[1727451198289,0.04495995,66424.0,66421.0,0.301109]
[1727451198519,0.04495995,66424.0,66423.0,0.15055]
[1727451198757,0.06743993,66425.0,66423.0,0.15055]
[1727451198988,0.06743993,66424.0,66423.0,0.15055]
[1727451199228,0.08991991,66426.0,66421.0,0.301109]
[1727451199229,0.06743993,66425.0,66421.0,0.301109]
[1727451199461,0.06743993,66425.0,66420.0,0.08220967]
[1727451199462,0.04498253,66425.0,66424.0,0.150547]
[1727451199734,0.04498253,66426.0,66422.0,0.301104]
[1727451199975,0.06798253,66426.0,66425.0,0.150545]
[1727451200453,0.06798253,66426.0,66422.0,0.301104]
[1727451200454,0.06798253,66426.0,66423.0,0.301099]
[1727451200700,0.04498253,66424.0,66423.0,0.001]
[1727451201007,0.06743993,66425.0,66423.0,0.151548]
[1727451201226,0.04499521,66425.0,66420.0,0.08220967]
[1727451201450,0.19554221,66425.0,66424.0,0.002]
[1727451201674,0.19554221,66425.0,66420.0,0.08220967]
[1727451201675,0.04500555,66425.0,66420.0,0.08220967]
[1727451201905,0.150548,66424.0,66420.0,0.08220967]
[1727451202130,0.150554,66421.0,66420.0,0.08220967]
[1727451202364,0.04500555,66421.0,66420.0,0.08220967]
[1727451202604,0.04500728,66421.0,66420.0,0.08220967]
[1727451203077,0.06743993,66421.0,66420.0,0.23276667]
[1727451203783,0.06743993,66421.0,66420.0,0.23676667]
[1727451204496,0.06743993,66421.0,66420.0,0.23776667]
[1727451204987,0.06743993,66421.0,66420.0,0.68943667]
[1727451206213,0.06743993,66421.0,66420.0,0.53887967]
[1727451206454,0.39628187,66421.0,66420.0,0.45727967]
[1727451206693,0.5395581,66421.0,66420.0,0.45727967]
[1727451209398,0.65361799,66421.0,66420.0,0.45727967]
[1727451211530,0.5412181,66421.0,66420.0,0.45727967]
[1727451211731,0.5412181,66421.0,66420.0,0.45327967]
[1727451215165,0.63123963,66421.0,66420.0,0.45327967]
[1727451215406,0.48068563,66421.0,66420.0,0.45327967]
[1727451215649,0.5412181,66421.0,66420.0,0.45327967]
[1727451216087,0.3906641,66421.0,66420.0,0.45327967]
[1727451216375,0.5412181,66421.0,66420.0,0.45327967]
[1727451216609,0.65374444,66421.0,66420.0,0.45327967]
[1727451216853,0.65413453,66421.0,66420.0,0.45327967]
[1727451217337,0.50358053,66421.0,66420.0,0.45327967]
[1727451217793,0.39105824,66421.0,66420.0,0.45327967]
[1727451218481,0.54161224,66421.0,66420.0,0.45327967]
[1727451219447,0.39105824,66421.0,66420.0,0.45327967]
[1727451219692,0.50360968,66421.0,66420.0,0.60383667]
[1727451219932,0.30281819,66421.0,66420.0,0.77893667]
[1727451220170,0.04668731,66421.0,66420.0,0.77893667]
[1727451220411,0.00166,66421.0,66420.0,0.77893667]
[1727451221127,0.00166,66421.0,66420.0,0.77793667]
[1727451221373,0.00266,66421.0,66420.0,0.78893667]
[1727451221619,0.00366,66421.0,66420.0,0.78993667]
[1727451221844,0.07121472,66421.0,66420.0,0.78993667]
[1727451222077,0.04869732,66421.0,66420.0,0.78993667]
[1727451222818,0.00366,66421.0,66420.0,0.78993667]
[1727451223801,0.09370789,66421.0,66420.0,0.78993667]
[1727451224033,0.35136053,66421.0,66420.0,0.63937967]
[1727451224275,0.38936309,66421.0,66420.0,0.63937967]
[1727451224518,0.23880909,66421.0,66420.0,0.78993667]
[1727451225006,0.23880909,66421.0,66420.0,0.46427967]
[1727451225007,0.38936309,66421.0,66420.0,0.46427967]
[1727451225242,0.23880909,66421.0,66420.0,0.61483667]
[1727451225502,0.23880909,66421.0,66420.0,0.46427967]
[1727451226228,0.38936309,66421.0,66420.0,0.46427967]
[1727451226476,0.54465103,66421.0,66420.0,0.46427967]
[1727451228369,0.77055294,66421.0,66420.0,0.46427967]
[1727451228603,0.58871372,66421.0,66420.0,0.46327967]
[1727451228832,0.58871372,66421.0,66420.0,0.45227967]
[1727451228833,0.74361882,66421.0,66420.0,0.45227967]
[1727451229069,0.59171372,66421.0,66420.0,0.45227967]
[1727451229311,0.74570891,66421.0,66420.0,0.45227967]
[1727451229796,0.59371372,66421.0,66420.0,0.45227967]
[1727451231529,0.68376344,66421.0,66420.0,0.45227967]
[1727451231657,0.54865103,66421.0,66420.0,0.45227967]
[1727451231903,0.68376344,66421.0,66420.0,0.45227967]
[1727451233298,0.54865103,66421.0,66420.0,0.45227967]
[1727451233767,0.7457328,66421.0,66420.0,0.45227967]
[1727451234242,0.59372087,66421.0,66420.0,0.45227967]
[1727451234956,0.76635999,66421.0,66420.0,0.45227967]
[1727451235180,0.84895999,66421.0,66420.0,0.45227967]
[1727451236079,0.84495999,66421.0,66420.0,0.45227967]
[1727451236563,0.85595999,66421.0,66420.0,0.45227967]
[1727451238182,0.78335999,66421.0,66420.0,0.45327967]
[1727451239336,0.76272575,66421.0,66420.0,0.45327967]
[1727451239650,0.61072087,66421.0,66420.0,0.45327967]
[1727451240256,0.61003088,66421.0,66420.0,0.45327967]
[1727451240502,0.56496104,66421.0,66420.0,0.45327967]
[1727451240739,0.70010217,66421.0,66420.0,0.45327967]
[1727451240981,0.56496104,66421.0,66420.0,0.45327967]
[1727451241232,0.56496104,66421.0,66420.0,0.45227967]
[1727451241233,0.55496104,66421.0,66420.0,0.45227967]
[1727451241461,0.54196104,66421.0,66420.0,0.45227967]
[1727451241737,0.55296104,66421.0,66420.0,0.45227967]
[1727451241975,0.54596104,66421.0,66420.0,0.45227967]
[1727451242211,0.59003839,66421.0,66420.0,0.45227967]
[1727451244545,0.54496104,66421.0,66420.0,0.45227967]
[1727451246969,0.68013863,66421.0,66420.0,0.45227967]
[1727451247911,0.76269238,66421.0,66420.0,0.45227967]
[1727451248151,0.76133708,66421.0,66420.0,0.45227967]
[1727451248387,0.91347901,66421.0,66420.0,0.45227967]
[1727451249105,0.76133708,66421.0,66420.0,0.45227967]
[1727451250323,0.92272514,66421.0,66420.0,0.45227967]
[1727451250566,1.03272514,66421.0,66420.0,0.45227967]
[1727451250790,1.25459879,66421.0,66420.0,0.45227967]
[1727451251794,1.10921073,66421.0,66420.0,0.45327967]
[1727451252030,1.12321073,66421.0,66420.0,0.45327967]
[1727451252262,0.69123328,66421.0,66420.0,0.45327967]
[1727451252501,1.12144771,66421.0,66420.0,0.45327967]
[1727451252757,0.91310492,66421.0,66420.0,0.45327967]
[1727451253003,1.56530062,66421.0,66420.0,0.45327967]
[1727451253264,1.0655003,66421.0,66420.0,0.45327967]
[1727451254036,0.91311547,66421.0,66420.0,0.45327967]
[1727451254293,0.69123328,66421.0,66420.0,0.45327967]
[1727451255807,0.65323328,66421.0,66420.0,0.45327967]
[1727451256894,0.67623328,66421.0,66420.0,0.45327967]
[1727451258087,0.50359416,66421.0,66420.0,0.45327967]
[1727451259320,0.86462382,66421.0,66420.0,0.45327967]
[1727451260448,0.71251092,66421.0,66420.0,0.45327967]
[1727451260695,0.88515004,66421.0,66420.0,0.45327967]
[1727451261397,0.67623328,66421.0,66420.0,0.45327967]
[1727451262646,0.50359416,66421.0,66420.0,0.45327967]
[1727451263162,0.38059416,66421.0,66420.0,0.63277967]
[1727451263472,0.33550194,66421.0,66420.0,0.63277967]
[1727451263776,0.32150194,66421.0,66420.0,0.63277967]
[1727451264574,0.40340801,66421.0,66420.0,0.63277967]
[1727451264850,0.41740801,66421.0,66420.0,0.63277967]
[1727451265178,0.00166,66423.0,66420.0,0.80441879]
[1727451265179,0.09183003,66423.0,66420.0,0.80441879]
[1727451265180,0.005,66421.0,66420.0,1.25608879]
[1727451265409,0.01166,66436.0,66423.0,0.15055]
[1727451265410,0.04508083,66424.0,66423.0,0.15055]
[1727451265688,0.04508083,66429.0,66428.0,0.150538]
[1727451265947,0.22590191,66430.0,66428.0,0.761558]
[1727451266217,0.30082813,66429.0,66428.0,0.62502]
[1727451266739,0.30082813,66429.0,66428.0,0.775558]
[1727451266998,0.30082813,66429.0,66428.0,0.62502]
[1727451267590,0.48011607,66429.0,66428.0,0.63102]
[1727451267746,0.63065207,66429.0,66428.0,0.63102]
[1727451268236,0.54050576,66429.0,66428.0,0.63102]
[1727451268463,0.54050576,66429.0,66428.0,0.63902]
[1727451270392,0.64716576,66429.0,66428.0,0.46562]
[1727451270675,0.69225617,66429.0,66428.0,0.46562]
[1727451270915,0.84441088,66429.0,66428.0,0.46562]
[1727451271431,0.86389529,66429.0,66428.0,0.45162]
[1727451271647,0.69425617,66429.0,66428.0,0.45262]
[1727451271927,0.68925617,66429.0,66428.0,0.45262]
[1727451272165,0.70025617,66429.0,66428.0,0.45262]
[1727451272418,0.70325617,66429.0,66428.0,0.45362]
[1727451272707,0.68025617,66429.0,66428.0,0.45362]
[1727451272919,0.68025617,66429.0,66428.0,0.55112]
[1727451272920,0.63701357,66429.0,66428.0,0.55112]
[1727451273168,0.77225815,66429.0,66428.0,0.55112]
[1727451273653,0.75825815,66429.0,66428.0,0.55012]
[1727451273932,0.78125815,66429.0,66428.0,0.55012]
[1727451274201,0.79525815,66429.0,66428.0,0.55012]
[1727451274441,0.79525815,66429.0,66428.0,0.55112]
[1727451274442,0.78625815,66429.0,66428.0,0.55112]
[1727451274691,0.78125815,66429.0,66428.0,0.55012]
[1727451275268,0.78125815,66429.0,66428.0,0.45162]
[1727451275269,0.65701357,66429.0,66428.0,0.45162]
[1727451275459,0.70210181,66429.0,66428.0,0.45162]
[1727451275725,0.69610181,66429.0,66428.0,0.45162]
[1727451275991,0.70110181,66429.0,66428.0,0.45162]
[1727451276226,0.70910181,66429.0,66428.0,0.45162]
[1727451276499,0.71110181,66429.0,66428.0,0.45162]
[1727451276940,0.70910181,66429.0,66428.0,0.45162]
[1727451277180,0.87048987,66429.0,66428.0,0.45162]
[1727451277440,0.86248987,66429.0,66428.0,0.45162]
[1727451277697,0.87648987,66429.0,66428.0,0.45262]
[1727451277925,0.73010181,66429.0,66428.0,0.45262]
[1727451278186,0.72010181,66429.0,66428.0,0.45162]
[1727451278436,0.73010181,66429.0,66428.0,0.45262]
[1727451279410,0.72010181,66429.0,66428.0,0.45262]
[1727451279641,0.86725497,66429.0,66428.0,0.45262]
[1727451282162,0.86725497,66429.0,66428.0,0.45345]
[1727451283019,0.86725813,66429.0,66428.0,0.45345]
[1727451283248,0.86725484,66429.0,66428.0,0.45345]
[1727451283474,0.71510181,66429.0,66428.0,0.45345]
[1727451284613,0.50441999,66429.0,66428.0,0.45345]
[1727451284852,0.71348753,66429.0,66428.0,0.45345]
[1727451285772,0.86565064,66429.0,66428.0,0.45345]
[1727451286445,0.71348753,66429.0,66428.0,0.45345]
[1727451287170,0.66839929,66429.0,66428.0,0.45345]
[1727451287654,0.65839929,66429.0,66428.0,0.45245]
[1727451287892,0.65355148,66429.0,66428.0,0.45245]
[1727451288127,0.64555148,66429.0,66428.0,0.45245]
[1727451288357,0.65455148,66429.0,66428.0,0.45245]
[1727451288596,0.64555148,66429.0,66428.0,0.45245]
[1727451289612,0.77528827,66429.0,66428.0,0.45245]
[1727451289856,0.6430468,66429.0,66428.0,0.45245]
[1727451290777,0.77828827,66429.0,66428.0,0.45245]
[1727451291279,0.6490468,66429.0,66428.0,0.45245]
[1727451291761,0.78428827,66429.0,66428.0,0.45245]
[1727451292231,0.6490468,66429.0,66428.0,0.45245]
[1727451293666,0.5490468,66429.0,66428.0,0.45245]
[1727451295374,0.5490468,66429.0,66428.0,0.779388]
[1727451295375,0.01066,66429.0,66428.0,0.779388]
[1727451295606,0.04506149,66434.0,66429.0,0.178]
[1727451295840,0.22590191,66435.0,66434.0,0.328525]
[1727451296065,0.00166,66436.0,66435.0,0.22566809]
[1727451296500,0.00166,66436.0,66435.0,0.37619109]
[1727451297190,0.00166,66436.0,66435.0,0.22566809]
[1727451297437,0.17518,66436.0,66435.0,0.22566809]
[1727451297905,0.22024149,66436.0,66435.0,0.22566809]
[1727451298102,0.22124149,66436.0,66435.0,0.23266809]
[1727451298561,0.37652943,66436.0,66435.0,0.23266809]
[1727451298775,0.33146794,66436.0,66435.0,0.23766809]
[1727451298990,0.33146794,66436.0,66435.0,0.23266809]
[1727451299201,0.33146794,66436.0,66435.0,0.23766809]
[1727451299408,0.37549794,66436.0,66435.0,0.23066809]
[1727451299636,0.37549794,66436.0,66435.0,0.23766809]
[1727451300355,0.7121706,66436.0,66435.0,0.23766809]
[1727451300589,0.53953148,66436.0,66435.0,0.23766809]
[1727451301527,0.53953148,66436.0,66435.0,0.23266809]
[1727451301961,0.54806662,66436.0,66435.0,0.23366809]
[1727451302224,0.53906662,66436.0,66435.0,0.23266809]
[1727451302452,0.54806662,66436.0,66435.0,0.22666809]
[1727451302672,0.53906662,66436.0,66435.0,0.22566809]
[1727451302901,0.54606662,66436.0,66435.0,0.22666809]
[1727451303147,0.55506662,66436.0,66435.0,0.22766809]
[1727451303407,0.55506662,66436.0,66435.0,0.22566809]
[1727451303408,0.53906662,66436.0,66435.0,0.22566809]
[1727451304332,0.53906662,66436.0,66435.0,0.22666809]
[1727451304333,0.54506662,66436.0,66435.0,0.22666809]
[1727451304825,0.55506662,66436.0,66435.0,0.22766809]
[1727451305047,0.54506662,66436.0,66435.0,0.12088009]
[1727451305497,0.55506662,66436.0,66435.0,0.12188009]
[1727451305718,0.54906662,66436.0,66435.0,0.12088009]
[1727451306213,0.55506662,66436.0,66435.0,0.12188009]
[1727451306853,0.55506662,66436.0,66435.0,0.12270909]
[1727451311608,0.55509133,66436.0,66435.0,0.12270909]
[1727451315159,0.60022281,66436.0,66435.0,0.12270909]
[1727451316336,0.150536,66429.0,66428.0,0.00083]
[1727451316577,0.150536,66429.0,66428.0,0.22673191]
[1727451316578,0.53745355,66429.0,66428.0,0.22673191]
[1727451316816,0.53745355,66429.0,66428.0,0.00083]
[1727451317743,0.53945355,66429.0,66428.0,0.00083]
[1727451319195,0.63945355,66429.0,66428.0,0.00083]
[1727451319437,0.99251014,66429.0,66428.0,0.00083]
[1727451319686,0.85724649,66429.0,66428.0,0.00083]
[1727451319942,0.68460737,66429.0,66428.0,0.00083]
[1727451320195,0.63945355,66429.0,66428.0,0.00083]
[1727451321183,0.63745355,66429.0,66428.0,0.00083]
[1727451321444,0.65145355,66429.0,66428.0,0.00083]
[1727451321694,0.64545355,66429.0,66428.0,0.00183]
[1727451322196,0.64745355,66429.0,66428.0,0.00083]
[1727451322448,0.65345355,66429.0,66428.0,0.00183]
[1727451325713,0.65070701,66429.0,66428.0,0.00183]
[1727451326415,0.6958667,66429.0,66428.0,0.00183]
[1727451327673,1.25079579,66429.0,66428.0,0.00183]
[1727451327674,1.25079579,66429.0,66420.0,0.09820967]
[1727451327675,0.150554,66421.0,66420.0,0.09820967]
[1727451327917,0.67011535,66421.0,66420.0,0.09820967]
[1727451329112,0.67111535,66421.0,66420.0,0.09820967]
[1727451329602,0.67111535,66421.0,66420.0,0.09920967]
[1727451330567,0.35705481,66421.0,66420.0,0.09920967]
[1727451331057,0.20650081,66421.0,66420.0,0.09920967]
[1727451331559,0.35705481,66421.0,66420.0,0.09920967]
[1727451332778,0.35705481,66421.0,66420.0,0.09610167]
[1727451333509,0.3193313,66421.0,66420.0,0.09610167]
[1727451333741,0.20650081,66421.0,66420.0,0.34404079]
[1727451334046,0.29676127,66421.0,66420.0,0.34404079]
[1727451334945,0.29676127,66421.0,66420.0,0.49459779]
[1727451335183,0.29676127,66421.0,66420.0,0.32195867]
[1727451335184,0.001,66421.0,66420.0,0.32195867]
[1727451335456,0.06869498,66421.0,66420.0,0.32195867]
[1727451335681,0.26437761,66421.0,66420.0,0.17140167]
[1727451335897,0.47075706,66421.0,66420.0,0.17140167]
[1727451336122,0.20737945,66421.0,66420.0,0.17140167]
[1727451336894,0.51322139,66421.0,66420.0,0.17140167]
[1727451338701,0.20737945,66421.0,66420.0,0.17140167]
[1727451338951,0.29764019,66421.0,66420.0,0.32195867]
[1727451339217,0.20737945,66421.0,66420.0,0.32195867]
[1727451339447,0.29764062,66421.0,66420.0,0.32195867]
[1727451339900,0.29734284,66421.0,66420.0,0.32195867]
[1727451342288,0.20708162,66421.0,66420.0,0.32195867]
[1727451342535,0.20708162,66421.0,66420.0,0.17140167]
[1727451342536,0.47046214,66421.0,66420.0,0.17140167]
[1727451343004,0.47046214,66421.0,66420.0,0.17223067]
[1727451343391,0.35929362,66421.0,66420.0,0.17223067]
[1727451344453,0.20873962,66421.0,66420.0,0.17223067]
[1727451344786,0.20876823,66421.0,66420.0,0.17223067]
[1727451345021,0.20876823,66421.0,66420.0,0.32278767]
[1727451345258,0.20876823,66421.0,66420.0,0.17223067]
[1727451346195,0.20876823,66421.0,66420.0,0.32278767]
[1727451346431,0.20876823,66421.0,66420.0,0.17223067]
[1727451347466,0.20876823,66421.0,66420.0,0.32278767]
[1727451349538,0.20907803,66421.0,66420.0,0.32278767]
[1727451351702,0.20907803,66421.0,66420.0,0.17223067]
[1727451352162,0.20907803,66421.0,66420.0,0.32278767]
[1727451353433,0.35963203,66421.0,66420.0,0.17223067]
[1727451353630,0.20907803,66421.0,66420.0,0.32278767]
[1727451353833,0.20907803,66421.0,66420.0,0.17223067]
[1727451354262,0.20871532,66421.0,66420.0,0.32278767]
[1727451358064,0.20871532,66421.0,66420.0,0.77445767]
[1727451359896,0.20871532,66421.0,66420.0,0.62390067]
[1727451360584,0.20871532,66421.0,66420.0,0.88771855]
[1727451360821,0.002658,66421.0,66420.0,1.12476698]
[1727451361038,0.002658,66421.0,66420.0,1.06098268]
[1727451361312,0.002658,66421.0,66420.0,0.90569474]
[1727451361541,0.002658,66421.0,66420.0,0.88771855]
[1727451361542,0.001658,66421.0,66420.0,0.88771855]
[1727451361984,0.06942302,66421.0,66420.0,0.88671855]
[1727451362197,0.06942302,66421.0,66420.0,0.77345767]
[1727451362421,0.07042302,66421.0,66420.0,0.89371855]
[1727451362880,0.07042302,66421.0,66420.0,0.89171855]
[1727451363143,0.07142302,66421.0,66420.0,0.90571855]
[1727451363587,0.07042302,66421.0,66420.0,0.89171855]
[1727451364119,0.07142302,66421.0,66420.0,0.75316155]
[1727451364389,0.07142302,66421.0,66420.0,0.90371855]
[1727451364632,0.07042302,66421.0,66420.0,0.89871855]
[1727451364899,0.07142302,66421.0,66420.0,0.90371855]
[1727451367801,0.003658,66421.0,66420.0,0.90371855]
[1727451368023,0.003658,66421.0,66420.0,1.05900649]
[1727451368243,0.003658,66421.0,66420.0,1.87719648]
[1727451368453,0.003658,66421.0,66420.0,1.88219648]
[1727451368661,0.003658,66421.0,66420.0,1.88419648]
[1727451369115,0.06942302,66435.0,66420.0,1.88419648]
[1727451369116,0.22590191,66429.0,66428.0,0.150538]
[1727451369349,0.22590191,66429.0,66428.0,0.89222922]
[1727451369598,0.04681033,66435.0,66434.0,0.150525]
[1727451369826,0.04681033,66435.0,66434.0,0.71536588]
[1727451370080,0.04681033,66435.0,66434.0,0.56484088]
[1727451370315,0.152181,66435.0,66434.0,0.45158]
[1727451370782,0.20886382,66435.0,66434.0,0.45158]
[1727451371013,0.36038682,66435.0,66434.0,0.46058]
[1727451371246,0.45075751,66435.0,66434.0,0.46058]
[1727451371480,0.002658,66435.0,66434.0,0.46058]
[1727451371938,0.19828036,66435.0,66434.0,0.46058]
[1727451372388,0.002658,66435.0,66434.0,0.46058]
[1727451372642,0.002658,66435.0,66434.0,0.46658]
[1727451373110,0.04774963,66435.0,66434.0,0.46658]
[1727451373357,0.002658,66435.0,66434.0,0.617105]
[1727451376310,0.002658,66435.0,66434.0,0.46658]
[1727451376804,0.002658,66435.0,66434.0,0.617105]
[1727451378200,0.002658,66435.0,66434.0,0.46658]
[1727451378428,0.153181,66435.0,66434.0,0.46658]
[1727451379530,0.24333376,66435.0,66434.0,0.46658]
[1727451379745,0.35983605,66435.0,66434.0,0.46658]
[1727451379959,0.47252385,66435.0,66434.0,0.46658]
[1727451380191,0.47252708,66435.0,66434.0,0.46658]
[1727451380422,0.47252613,66435.0,66434.0,0.46658]
[1727451380657,0.35983605,66435.0,66434.0,0.46658]
[1727451380872,0.62781407,66435.0,66434.0,0.46658]
[1727451381100,0.51512399,66435.0,66434.0,0.46658]
[1727451381794,0.62781276,66435.0,66434.0,0.46658]
[1727451382032,0.51512399,66435.0,66434.0,0.46658]
[1727451383059,0.53812399,66435.0,66434.0,0.46658]
[1727451384759,0.75579891,66435.0,66434.0,0.46658]
[1727451385245,0.90793169,66435.0,66434.0,0.46658]
[1727451385478,0.75479891,66435.0,66434.0,0.45158]
[1727451385913,0.76279891,66435.0,66434.0,0.45258]
[1727451386162,0.76066259,66435.0,66434.0,0.45258]
[1727451389285,0.86066259,66435.0,66434.0,0.45258]
[1727451389988,1.0128231,66435.0,66434.0,0.45258]
[1727451390520,0.84025901,66435.0,66434.0,0.45258]
[1727451391835,0.6880985,66435.0,66434.0,0.45258]
[1727451392079,0.64298767,66435.0,66434.0,0.45258]
[1727451392317,0.77822009,66435.0,66434.0,0.45258]
[1727451395639,0.77908827,66435.0,66434.0,0.45258]
[1727451397325,0.64383989,66435.0,66434.0,0.45258]
[1727451397570,0.77845203,66435.0,66434.0,0.45258]
[1727451397813,0.87165203,66435.0,66434.0,0.45258]
[1727451398048,1.02804009,66435.0,66434.0,0.45258]
[1727451398568,0.86965203,66435.0,66434.0,0.45258]
[1727451398807,0.87065203,66435.0,66434.0,0.45358]
[1727451399276,0.79520878,66435.0,66434.0,0.45258]
[1727451399518,0.67195203,66435.0,66434.0,0.45358]
[1727451400759,0.69495203,66435.0,66434.0,0.45358]
[1727451401452,0.68195203,66435.0,66434.0,0.45258]
[1727451401678,0.68095203,66435.0,66434.0,0.45158]
[1727451401933,0.69795203,66435.0,66434.0,0.45258]
[1727451405070,0.69737697,66435.0,66434.0,0.45258]
[1727451409886,0.69737198,66435.0,66434.0,0.45258]
[1727451413234,0.70237198,66435.0,66434.0,0.45258]
[1727451414649,0.7016992,66435.0,66434.0,0.45258]
[1727451419238,0.7895992,66435.0,66434.0,0.362094]
[1727451420042,0.7825992,66435.0,66434.0,0.361094]
[1727451420314,0.7725992,66435.0,66434.0,0.361094]
[1727451420802,0.7865992,66435.0,66434.0,0.362094]
[1727451421556,0.7985992,66435.0,66434.0,0.363094]
[1727451422060,0.80808794,66435.0,66434.0,0.362094]
[1727451422558,0.82008794,66435.0,66434.0,0.363094]
[1727451422803,0.7985992,66435.0,66434.0,0.363094]
[1727451423039,0.90985595,66435.0,66434.0,0.363094]
[1727451423510,0.83395595,66435.0,66434.0,0.363094]
[1727451424479,0.7206992,66435.0,66434.0,0.363094]
[1727451424740,0.7056992,66435.0,66434.0,0.363094]
[1727451424978,0.5826992,66435.0,66434.0,0.460194]
[1727451425220,0.69595595,66435.0,66434.0,0.460194]
[1727451425455,0.67286667,66435.0,66434.0,0.460194]
[1727451425692,0.66086667,66435.0,66434.0,0.459194]
[1727451425928,0.65886667,66435.0,66434.0,0.459194]
[1727451426192,0.87212342,66435.0,66434.0,0.459194]
[1727451426435,0.64558706,66435.0,66434.0,0.459194]
[1727451426905,0.92023187,66435.0,66434.0,0.362094]
[1727451427174,0.81866177,66435.0,66434.0,0.362094]
[1727451427420,0.81866177,66435.0,66434.0,0.362923]
[1727451427659,0.80366177,66435.0,66434.0,0.362923]
[1727451427920,0.80366177,66435.0,66434.0,0.363923]
[1727451427921,0.69740502,66435.0,66434.0,0.363923]